[Event "November 21 Early 2023"]
[Site "https://www.chess.com"]
[Date "2023.11.21"]
[Round "5"]
[White "Manukyan, Sargis A."]
[Black "Ibarra Jerez, Jose Carlos"]
[Result "0-1"]
[Board "64"]
[TimeControl "180+1"]
[WhiteFideId "13303970"]
[BlackFideId "2226332"]
[WhiteElo "2204"]
[BlackElo "2634"]
[WhiteTeam "ARM"]
[BlackTeam "ESP"]
[WhiteClock "0:00:24"]
[BlackClock "0:00:05"]

1. d4 {[%clk 0:03:00]}  Nf6 {[%clk 0:02:58]} 2. c4 {[%clk 0:03:01]}  d6 {[%clk 0:02:59]} 3. Nf3 {[%clk 0:03:00]}  g6 {[%clk 0:02:59]} 4. Nc3 {[%clk 0:03:00]}  Bf5 {[%clk 0:02:59]} 5. Bf4 {[%clk 0:02:57]}  Bg7 {[%clk 0:02:55]} 6. h3 {[%clk 0:02:57]}  O-O {[%clk 0:02:52]} 7. e3 {[%clk 0:02:56]}  Ne4 {[%clk 0:02:50]} 8. Nxe4 {[%clk 0:02:55]}  Bxe4 {[%clk 0:02:51]} 9. Bd3 {[%clk 0:02:56]}  Bxf3 {[%clk 0:02:45]} 10. Qxf3 {[%clk 0:02:56]}  e5 {[%clk 0:02:40]} 11. Bg3 {[%clk 0:02:41]}  exd4 {[%clk 0:02:36]} 12. Qxb7 {[%clk 0:02:35]}  Nd7 {[%clk 0:02:35]} 13. exd4 {[%clk 0:02:30]}  Re8+ {[%clk 0:02:29]} 14. Kf1 {[%clk 0:02:30]}  Bxd4 {[%clk 0:02:24]} 15. Qd5 {[%clk 0:01:55]}  Qf6 {[%clk 0:02:21]} 16. h4 {[%clk 0:01:45]}  Rab8 {[%clk 0:02:11]} 17. Rb1 {[%clk 0:01:41]}  Nc5 {[%clk 0:01:50]} 18. Bc2 {[%clk 0:01:29]}  Bxb2 {[%clk 0:01:27]} 19. h5 {[%clk 0:01:26]}  Bc3 {[%clk 0:01:19]} 20. Rxb8 {[%clk 0:01:18]}  Rxb8 {[%clk 0:01:20]} 21. hxg6 {[%clk 0:01:13]}  hxg6 {[%clk 0:01:19]} 22. Rh4 {[%clk 0:00:51]}  Be5 {[%clk 0:01:00]} 23. f4 {[%clk 0:00:36]}  Ne6 {[%clk 0:00:33]} 24. Rg4 {[%clk 0:00:34]}  Bxf4 {[%clk 0:00:12]} 25. Bxg6 {[%clk 0:00:33]}  Bxg3+ {[%clk 0:00:09]} 26. Bf5+ {[%clk 0:00:33]}  Kf8 {[%clk 0:00:09]} 27. Rxg3 {[%clk 0:00:33]}  Rb1+ {[%clk 0:00:07]} 28. Kf2 {[%clk 0:00:26]}  Qb2+ {[%clk 0:00:07]} 29. Kf3 {[%clk 0:00:26]}  Rf1+ {[%clk 0:00:06]} 30. Kg4 {[%clk 0:00:25]}  Qg7+ {[%clk 0:00:06]} 31. Kh4 {[%clk 0:00:24]}  Qh6+ {[%clk 0:00:04]} 32. Kg4 {[%clk 0:00:24]}  Rf4# {[%clk 0:00:05]} 0-1

[Event "November 21 Early 2023"]
[Site "https://www.chess.com"]
[Date "2023.11.21"]
[Round "5"]
[White "GatoRojo150"]
[Black "mind1mover"]
[Result "0-1"]
[Board "65"]
[TimeControl "180+1"]
[WhiteElo "2581"]
[BlackElo "2880"]
[WhiteClock "0:00:05"]
[BlackClock "0:00:03"]

1. e4 {[%clk 0:03:00]}  Nc6 {[%clk 0:03:00]} 2. Nc3 {[%clk 0:02:59]}  d6 {[%clk 0:03:01]} 3. d4 {[%clk 0:02:56]}  Nf6 {[%clk 0:03:01]} 4. Nf3 {[%clk 0:02:56]}  g6 {[%clk 0:03:01]} 5. Bc4 {[%clk 0:02:51]}  Bg7 {[%clk 0:02:59]} 6. Qe2 {[%clk 0:02:50]}  Bg4 {[%clk 0:02:56]} 7. e5 {[%clk 0:02:46]}  Bxf3 {[%clk 0:02:35]} 8. gxf3 {[%clk 0:02:33]}  Nh5 {[%clk 0:02:06]} 9. e6 {[%clk 0:02:03]}  f5 {[%clk 0:01:49]} 10. d5 {[%clk 0:02:03]}  Ne5 {[%clk 0:01:18]} 11. Bb3 {[%clk 0:01:51]}  c6 {[%clk 0:01:15]} 12. f4 {[%clk 0:01:48]}  Ng4 {[%clk 0:01:15]} 13. Bd2 {[%clk 0:01:43]}  Qb6 {[%clk 0:01:08]} 14. h3 {[%clk 0:01:34]}  Ngf6 {[%clk 0:01:06]} 15. O-O-O {[%clk 0:01:31]}  O-O {[%clk 0:00:59]} 16. Be3 {[%clk 0:01:30]}  Qb4 {[%clk 0:00:59]} 17. a3 {[%clk 0:01:23]}  Qa5 {[%clk 0:00:55]} 18. dxc6 {[%clk 0:01:16]}  bxc6 {[%clk 0:00:56]} 19. h4 {[%clk 0:00:43]}  Rab8 {[%clk 0:00:54]} 20. Rhg1 {[%clk 0:00:38]}  Ng4 {[%clk 0:00:38]} 21. Bd4 {[%clk 0:00:17]}  Nxf4 {[%clk 0:00:38]} 22. Qf3 {[%clk 0:00:14]}  Nh5 {[%clk 0:00:24]} 23. Qxc6 {[%clk 0:00:09]}  Rfc8 {[%clk 0:00:22]} 24. Qd5 {[%clk 0:00:09]}  Qc7 {[%clk 0:00:11]} 25. Bxg7 {[%clk 0:00:09]}  Kxg7 {[%clk 0:00:12]} 26. Rxg4 {[%clk 0:00:09]}  fxg4 {[%clk 0:00:02]} 27. Qd4+ {[%clk 0:00:09]}  Kg8 {[%clk 0:00:03]} 28. Qxg4 {[%clk 0:00:09]}  Nf6 {[%clk 0:00:03]} 29. Qg5 {[%clk 0:00:09]}  Qc5 {[%clk 0:00:04]} 30. Qh6 {[%clk 0:00:09]}  Qh5 {[%clk 0:00:04]} 31. Qf4 {[%clk 0:00:09]}  a5 {[%clk 0:00:04]} 32. Rxd6 {[%clk 0:00:09]}  Qg4 {[%clk 0:00:03]} 33. Qxg4 {[%clk 0:00:09]}  Nxg4 {[%clk 0:00:03]} 34. Rd7 {[%clk 0:00:10]}  Kf8 {[%clk 0:00:03]} 35. Nd5 {[%clk 0:00:09]}  Re8 {[%clk 0:00:02]} 36. Nc7 {[%clk 0:00:09]}  Nf6 {[%clk 0:00:02]} 37. Nxe8 {[%clk 0:00:09]}  Nxd7 {[%clk 0:00:02]} 38. exd7 {[%clk 0:00:10]}  Rd8 {[%clk 0:00:02]} 39. Be6 {[%clk 0:00:09]}  h6 {[%clk 0:00:03]} 40. Nc7 {[%clk 0:00:09]}  g5 {[%clk 0:00:03]} 41. hxg5 {[%clk 0:00:08]}  hxg5 {[%clk 0:00:04]} 42. Nd5 {[%clk 0:00:08]}  Kg7 {[%clk 0:00:04]} 43. Bg4 {[%clk 0:00:08]}  Kf7 {[%clk 0:00:04]} 44. Ne3 {[%clk 0:00:08]}  e6 {[%clk 0:00:04]} 45. Nc4 {[%clk 0:00:08]}  Kf6 {[%clk 0:00:05]} 46. Nb6 {[%clk 0:00:08]}  Rb8 {[%clk 0:00:05]} 47. Bh3 {[%clk 0:00:05]}  Ke7 {[%clk 0:00:06]} 48. Nc4 {[%clk 0:00:04]}  Rh8 {[%clk 0:00:04]} 49. Bg4 {[%clk 0:00:03]}  Kxd7 {[%clk 0:00:04]} 50. f3 {[%clk 0:00:03]}  a4 {[%clk 0:00:03]} 51. Nb6+ {[%clk 0:00:03]}  Kd6 {[%clk 0:00:03]} 52. Nxa4 {[%clk 0:00:04]}  e5 {[%clk 0:00:02]} 53. Nc3 {[%clk 0:00:04]}  Kc5 {[%clk 0:00:02]} 54. Ne4+ {[%clk 0:00:05]}  Kd4 {[%clk 0:00:03]} 55. Nxg5 {[%clk 0:00:05]}  Ke3 {[%clk 0:00:03]} 56. Nf7 {[%clk 0:00:05]}  Rh1# {[%clk 0:00:03]} 0-1

[Event "November 21 Early 2023"]
[Site "https://www.chess.com"]
[Date "2023.11.21"]
[Round "5"]
[White "FREDERICKtheMATE"]
[Black "Galaktionov, Artem"]
[Result "0-1"]
[Board "66"]
[TimeControl "180+1"]
[BlackFideId "24175471"]
[WhiteElo "2566"]
[BlackElo "2367"]
[BlackTeam "RUS"]
[WhiteClock "0:01:02"]
[BlackClock "0:01:35"]

1. Nf3 {[%clk 0:03:00]}  c6 {[%clk 0:02:42]} 2. c4 {[%clk 0:03:00]}  g6 {[%clk 0:02:41]} 3. Nc3 {[%clk 0:02:59]}  Bg7 {[%clk 0:02:42]} 4. e4 {[%clk 0:02:58]}  d6 {[%clk 0:02:42]} 5. d4 {[%clk 0:02:58]}  Nd7 {[%clk 0:02:41]} 6. h3 {[%clk 0:02:57]}  e5 {[%clk 0:02:42]} 7. Be3 {[%clk 0:02:56]}  Ngf6 {[%clk 0:02:42]} 8. Bd3 {[%clk 0:02:55]}  O-O {[%clk 0:02:42]} 9. Qd2 {[%clk 0:02:52]}  exd4 {[%clk 0:02:41]} 10. Nxd4 {[%clk 0:02:52]}  Nc5 {[%clk 0:02:41]} 11. Bc2 {[%clk 0:02:49]}  Re8 {[%clk 0:02:41]} 12. f3 {[%clk 0:02:48]}  d5 {[%clk 0:02:41]} 13. Nxc6 {[%clk 0:02:44]}  bxc6 {[%clk 0:02:38]} 14. Bxc5 {[%clk 0:02:42]}  Nd7 {[%clk 0:02:32]} 15. Bf2 {[%clk 0:02:36]}  dxe4 {[%clk 0:02:32]} 16. fxe4 {[%clk 0:02:33]}  Rb8 {[%clk 0:02:31]} 17. Rb1 {[%clk 0:02:26]}  Qa5 {[%clk 0:02:28]} 18. Bd4 {[%clk 0:02:20]}  Ne5 {[%clk 0:02:24]} 19. Bxe5 {[%clk 0:02:01]}  Bxe5 {[%clk 0:02:21]} 20. Bb3 {[%clk 0:01:58]}  Rd8 {[%clk 0:02:14]} 21. Qe3 {[%clk 0:01:51]}  Bd4 {[%clk 0:02:12]} 22. Qf3 {[%clk 0:01:49]}  Be6 {[%clk 0:02:12]} 23. Ke2 {[%clk 0:01:44]}  Qc5 {[%clk 0:02:08]} 24. Na4 {[%clk 0:01:37]}  Bxc4+ {[%clk 0:02:07]} 25. Ke1 {[%clk 0:01:34]}  Qb4+ {[%clk 0:02:06]} 26. Nc3 {[%clk 0:01:33]}  Bxb3 {[%clk 0:01:58]} 27. axb3 {[%clk 0:01:34]}  Qxb3 {[%clk 0:01:58]} 28. Ne2 {[%clk 0:01:31]}  Qb4+ {[%clk 0:01:51]} 29. Kf1 {[%clk 0:01:28]}  Bxb2 {[%clk 0:01:51]} 30. Kf2 {[%clk 0:01:26]}  Qc5+ {[%clk 0:01:50]} 31. Qe3 {[%clk 0:01:22]}  Qxe3+ {[%clk 0:01:41]} 32. Kxe3 {[%clk 0:01:23]}  a5 {[%clk 0:01:40]} 33. Rhd1 {[%clk 0:01:13]}  Rxd1 {[%clk 0:01:39]} 34. Rxd1 {[%clk 0:01:13]}  a4 {[%clk 0:01:40]} 35. Rd7 {[%clk 0:01:13]}  Ra8 {[%clk 0:01:38]} 36. Nd4 {[%clk 0:01:02]}  a3 {[%clk 0:01:35]} 0-1

[Event "November 21 Early 2023"]
[Site "https://www.chess.com"]
[Date "2023.11.21"]
[Round "5"]
[White "Pham, Le Thao Nguyen"]
[Black "Llorente Zaro, Alfonso"]
[Result "1/2-1/2"]
[Board "67"]
[TimeControl "180+1"]
[WhiteFideId "12401226"]
[BlackFideId "2254131"]
[WhiteElo "2261"]
[BlackElo "2485"]
[WhiteTeam "VIE"]
[BlackTeam "ESP"]
[WhiteClock "0:00:08"]
[BlackClock "0:00:07"]

1. d4 {[%clk 0:02:52]}  d6 {[%clk 0:01:36]} 2. Nf3 {[%clk 0:02:47]}  Bg4 {[%clk 0:01:35]} 3. Nbd2 {[%clk 0:02:43]}  Nf6 {[%clk 0:01:34]} 4. g3 {[%clk 0:02:42]}  c6 {[%clk 0:01:34]} 5. Bg2 {[%clk 0:02:43]}  g6 {[%clk 0:01:32]} 6. h3 {[%clk 0:02:39]}  Bd7 {[%clk 0:01:29]} 7. O-O {[%clk 0:02:37]}  Bg7 {[%clk 0:01:30]} 8. e4 {[%clk 0:02:35]}  Na6 {[%clk 0:01:28]} 9. c3 {[%clk 0:02:27]}  O-O {[%clk 0:01:28]} 10. Re1 {[%clk 0:02:27]}  c5 {[%clk 0:01:28]} 11. e5 {[%clk 0:02:26]}  Nd5 {[%clk 0:01:25]} 12. exd6 {[%clk 0:02:19]}  exd6 {[%clk 0:01:22]} 13. Ne4 {[%clk 0:02:04]}  Bc6 {[%clk 0:01:20]} 14. Bg5 {[%clk 0:01:57]}  f6 {[%clk 0:01:06]} 15. Bd2 {[%clk 0:01:55]}  Kh8 {[%clk 0:00:52]} 16. a3 {[%clk 0:01:50]}  Re8 {[%clk 0:00:46]} 17. Qc2 {[%clk 0:01:34]}  c4 {[%clk 0:00:43]} 18. Qc1 {[%clk 0:01:02]}  Nac7 {[%clk 0:00:39]} 19. Bh6 {[%clk 0:01:01]}  Qd7 {[%clk 0:00:38]} 20. Bxg7+ {[%clk 0:01:01]}  Kxg7 {[%clk 0:00:39]} 21. Qc2 {[%clk 0:00:54]}  b5 {[%clk 0:00:38]} 22. Ned2 {[%clk 0:00:51]}  Rxe1+ {[%clk 0:00:37]} 23. Rxe1 {[%clk 0:00:51]}  Re8 {[%clk 0:00:37]} 24. Qd1 {[%clk 0:00:48]}  Nb6 {[%clk 0:00:36]} 25. Nf1 {[%clk 0:00:47]}  Na4 {[%clk 0:00:35]} 26. Rxe8 {[%clk 0:00:43]}  Qxe8 {[%clk 0:00:34]} 27. Qd2 {[%clk 0:00:43]}  Be4 {[%clk 0:00:32]} 28. Ne3 {[%clk 0:00:36]}  Nd5 {[%clk 0:00:32]} 29. Nxd5 {[%clk 0:00:32]}  Bxd5 {[%clk 0:00:33]} 30. Ne1 {[%clk 0:00:31]}  Bxg2 {[%clk 0:00:33]} 31. Nxg2 {[%clk 0:00:32]}  Qe4 {[%clk 0:00:33]} 32. Kh2 {[%clk 0:00:29]}  Nb6 {[%clk 0:00:21]} 33. Nf4 {[%clk 0:00:28]}  g5 {[%clk 0:00:19]} 34. Nh5+ {[%clk 0:00:27]}  Kg6 {[%clk 0:00:18]} 35. g4 {[%clk 0:00:27]}  Nd5 {[%clk 0:00:13]} 36. Ng3 {[%clk 0:00:28]}  Qd3 {[%clk 0:00:12]} 37. Qe1 {[%clk 0:00:26]}  Kf7 {[%clk 0:00:11]} 38. Nf5 {[%clk 0:00:22]}  Qf3 {[%clk 0:00:10]} 39. Nxd6+ {[%clk 0:00:21]}  Kg7 {[%clk 0:00:10]} 40. Nf5+ {[%clk 0:00:19]}  Kf7 {[%clk 0:00:10]} 41. Nd6+ {[%clk 0:00:17]}  Kg7 {[%clk 0:00:10]} 42. Nf5+ {[%clk 0:00:14]}  Kf7 {[%clk 0:00:07]} 43. Nd6+ {[%clk 0:00:08]} 1/2-1/2

[Event "November 21 Early 2023"]
[Site "https://www.chess.com"]
[Date "2023.11.21"]
[Round "5"]
[White "Weetik, Vjacheslav"]
[Black "Herzog2012"]
[Result "1-0"]
[Board "68"]
[TimeControl "180+1"]
[WhiteFideId "4153472"]
[WhiteElo "2469"]
[BlackElo "2555"]
[WhiteTeam "RUS"]
[WhiteClock "0:00:33"]
[BlackClock "0:00:00"]

1. d4 {[%clk 0:02:58]}  Nf6 {[%clk 0:02:59]} 2. c4 {[%clk 0:02:58]}  e6 {[%clk 0:02:58]} 3. g3 {[%clk 0:02:58]}  d5 {[%clk 0:02:57]} 4. Nf3 {[%clk 0:02:57]}  Be7 {[%clk 0:02:57]} 5. Bg2 {[%clk 0:02:57]}  O-O {[%clk 0:02:57]} 6. O-O {[%clk 0:02:58]}  dxc4 {[%clk 0:02:57]} 7. Qc2 {[%clk 0:02:56]}  a6 {[%clk 0:02:57]} 8. a4 {[%clk 0:02:56]}  Bd7 {[%clk 0:02:55]} 9. Qxc4 {[%clk 0:02:56]}  Bc6 {[%clk 0:02:55]} 10. Bf4 {[%clk 0:02:56]}  a5 {[%clk 0:02:55]} 11. Nc3 {[%clk 0:02:55]}  Na6 {[%clk 0:02:55]} 12. e3 {[%clk 0:02:49]}  Nb4 {[%clk 0:02:53]} 13. Qe2 {[%clk 0:02:48]}  Ne4 {[%clk 0:02:29]} 14. Rfc1 {[%clk 0:02:38]}  Bd6 {[%clk 0:02:25]} 15. Nb5 {[%clk 0:02:31]}  Bxf4 {[%clk 0:02:21]} 16. gxf4 {[%clk 0:02:23]}  Nd6 {[%clk 0:02:13]} 17. Ne5 {[%clk 0:02:16]}  Bxg2 {[%clk 0:01:59]} 18. Kxg2 {[%clk 0:02:14]}  Nxb5 {[%clk 0:01:38]} 19. Qxb5 {[%clk 0:02:11]}  Qd5+ {[%clk 0:01:37]} 20. Qxd5 {[%clk 0:02:11]}  Nxd5 {[%clk 0:01:38]} 21. e4 {[%clk 0:01:46]}  Nxf4+ {[%clk 0:01:35]} 22. Kf3 {[%clk 0:01:46]}  Ng6 {[%clk 0:01:07]} 23. Rxc7 {[%clk 0:01:38]}  Nxe5+ {[%clk 0:00:58]} 24. dxe5 {[%clk 0:01:39]}  Rab8 {[%clk 0:00:51]} 25. Rc5 {[%clk 0:01:21]}  b6 {[%clk 0:00:48]} 26. Rb5 {[%clk 0:01:20]}  Rfc8 {[%clk 0:00:38]} 27. Rd1 {[%clk 0:01:19]}  g6 {[%clk 0:00:22]} 28. Rd6 {[%clk 0:01:15]}  Rc4 {[%clk 0:00:22]} 29. b3 {[%clk 0:01:13]}  Rc5 {[%clk 0:00:10]} 30. Rdxb6 {[%clk 0:00:53]}  Rxb6 {[%clk 0:00:09]} 31. Rxb6 {[%clk 0:00:53]}  Rxe5 {[%clk 0:00:09]} 32. Rb5 {[%clk 0:00:49]}  f6 {[%clk 0:00:03]} 33. Rxe5 {[%clk 0:00:32]}  fxe5 {[%clk 0:00:03]} 34. b4 {[%clk 0:00:33]}  axb4 {[%clk 0:00:03]} 35. Ke3 {[%clk 0:00:32]}  Kf7 {[%clk 0:00:02]} 36. a5 {[%clk 0:00:32]}  b3 {[%clk 0:00:02]} 37. Kd3 {[%clk 0:00:32]}  b2 {[%clk 0:00:00]} 38. Kc2 {[%clk 0:00:33]} 1-0

[Event "November 21 Early 2023"]
[Site "https://www.chess.com"]
[Date "2023.11.21"]
[Round "5"]
[White "Djordjevic, Vuk"]
[Black "elmusmolamas"]
[Result "1-0"]
[Board "69"]
[TimeControl "180+1"]
[WhiteFideId "902098"]
[WhiteElo "2425"]
[BlackElo "2553"]
[WhiteTeam "SRB"]
[WhiteClock "0:00:06"]
[BlackClock "0:00:04"]

1. d4 {[%clk 0:02:16]}  Nf6 {[%clk 0:02:58]} 2. Bg5 {[%clk 0:02:09]}  c6 {[%clk 0:02:57]} 3. Bxf6 {[%clk 0:02:09]}  exf6 {[%clk 0:02:58]} 4. e3 {[%clk 0:02:09]}  d5 {[%clk 0:02:58]} 5. c4 {[%clk 0:02:07]}  Bb4+ {[%clk 0:02:50]} 6. Nc3 {[%clk 0:02:07]}  O-O {[%clk 0:02:51]} 7. Nf3 {[%clk 0:02:00]}  Re8 {[%clk 0:02:48]} 8. cxd5 {[%clk 0:01:41]}  Qxd5 {[%clk 0:02:47]} 9. Be2 {[%clk 0:01:36]}  Qa5 {[%clk 0:02:43]} 10. Qb3 {[%clk 0:01:24]}  Be6 {[%clk 0:02:37]} 11. Bc4 {[%clk 0:01:23]}  Bxc4 {[%clk 0:02:08]} 12. Qxc4 {[%clk 0:01:24]}  Nd7 {[%clk 0:02:08]} 13. O-O {[%clk 0:01:21]}  Nb6 {[%clk 0:02:09]} 14. Qb3 {[%clk 0:01:20]}  Bd6 {[%clk 0:02:01]} 15. Nd2 {[%clk 0:01:00]}  Bc7 {[%clk 0:02:01]} 16. Nde4 {[%clk 0:00:55]}  Qh5 {[%clk 0:01:59]} 17. h3 {[%clk 0:00:54]}  Rab8 {[%clk 0:01:12]} 18. Rac1 {[%clk 0:00:44]}  f5 {[%clk 0:01:08]} 19. Nc5 {[%clk 0:00:38]}  Qg6 {[%clk 0:01:06]} 20. Ne2 {[%clk 0:00:30]}  h5 {[%clk 0:01:00]} 21. a4 {[%clk 0:00:26]}  Qd6 {[%clk 0:00:55]} 22. g3 {[%clk 0:00:20]}  h4 {[%clk 0:00:55]} 23. Kg2 {[%clk 0:00:18]}  Nd5 {[%clk 0:00:55]} 24. Nf4 {[%clk 0:00:09]}  hxg3 {[%clk 0:00:49]} 25. Nxd5 {[%clk 0:00:09]}  cxd5 {[%clk 0:00:50]} 26. Nxb7 {[%clk 0:00:04]}  Qd7 {[%clk 0:00:28]} 27. Nc5 {[%clk 0:00:05]}  Qe7 {[%clk 0:00:21]} 28. Qd3 {[%clk 0:00:04]}  gxf2 {[%clk 0:00:20]} 29. Rxf2 {[%clk 0:00:02]}  g6 {[%clk 0:00:20]} 30. Na6 {[%clk 0:00:02]}  Bd6 {[%clk 0:00:19]} 31. Nxb8 {[%clk 0:00:02]}  Rxb8 {[%clk 0:00:20]} 32. Rc6 {[%clk 0:00:02]}  Rb6 {[%clk 0:00:17]} 33. Rxb6 {[%clk 0:00:02]}  axb6 {[%clk 0:00:18]} 34. Re2 {[%clk 0:00:02]}  Qh4 {[%clk 0:00:18]} 35. Rf2 {[%clk 0:00:02]}  Qg3+ {[%clk 0:00:18]} 36. Kf1 {[%clk 0:00:03]}  Qxh3+ {[%clk 0:00:18]} 37. Ke2 {[%clk 0:00:04]}  Qh5+ {[%clk 0:00:19]} 38. Kd2 {[%clk 0:00:04]}  Bg3 {[%clk 0:00:19]} 39. Rg2 {[%clk 0:00:03]}  Qh1 {[%clk 0:00:17]} 40. Qe2 {[%clk 0:00:03]}  Bd6 {[%clk 0:00:16]} 41. Kc2 {[%clk 0:00:02]}  Qa1 {[%clk 0:00:14]} 42. Kb3 {[%clk 0:00:02]}  Qc1 {[%clk 0:00:11]} 43. Qd3 {[%clk 0:00:02]}  Kf8 {[%clk 0:00:08]} 44. Rc2 {[%clk 0:00:02]}  Qe1 {[%clk 0:00:08]} 45. Rc6 {[%clk 0:00:03]}  Kg7 {[%clk 0:00:08]} 46. Rxd6 {[%clk 0:00:03]}  Qa5 {[%clk 0:00:09]} 47. Rc6 {[%clk 0:00:03]}  Qa7 {[%clk 0:00:04]} 48. Qb5 {[%clk 0:00:03]}  Qe7 {[%clk 0:00:04]} 49. Rc3 {[%clk 0:00:04]}  Qe6 {[%clk 0:00:04]} 50. Ka2 {[%clk 0:00:04]}  g5 {[%clk 0:00:04]} 51. Rb3 {[%clk 0:00:04]}  g4 {[%clk 0:00:04]} 52. Qxb6 {[%clk 0:00:05]}  g3 {[%clk 0:00:04]} 53. Qxe6 {[%clk 0:00:04]}  fxe6 {[%clk 0:00:05]} 54. Rc3 {[%clk 0:00:04]}  f4 {[%clk 0:00:03]} 55. exf4 {[%clk 0:00:04]}  Kf6 {[%clk 0:00:04]} 56. Rxg3 {[%clk 0:00:05]}  Kf5 {[%clk 0:00:05]} 57. Re3 {[%clk 0:00:05]}  Kxf4 {[%clk 0:00:04]} 58. Re5 {[%clk 0:00:06]} 1-0

[Event "November 21 Early 2023"]
[Site "https://www.chess.com"]
[Date "2023.11.21"]
[Round "5"]
[White "NovozhilovSemen"]
[Black "Redzisz, Michal"]
[Result "1-0"]
[Board "70"]
[TimeControl "180+1"]
[BlackFideId "21816107"]
[WhiteElo "2744"]
[BlackElo "2068"]
[BlackTeam "POL"]
[WhiteClock "0:00:43"]
[BlackClock "0:01:03"]

1. d4 {[%clk 0:03:00]}  Nf6 {[%clk 0:02:58]} 2. Nf3 {[%clk 0:03:00]}  g6 {[%clk 0:02:58]} 3. Nc3 {[%clk 0:03:00]}  d5 {[%clk 0:02:58]} 4. Bf4 {[%clk 0:03:00]}  Bg7 {[%clk 0:02:56]} 5. Nb5 {[%clk 0:03:00]}  Na6 {[%clk 0:02:56]} 6. e3 {[%clk 0:03:00]}  c6 {[%clk 0:02:53]} 7. Nc3 {[%clk 0:02:59]}  O-O {[%clk 0:02:53]} 8. Be2 {[%clk 0:02:58]}  b5 {[%clk 0:02:54]} 9. Ne5 {[%clk 0:02:57]}  Bb7 {[%clk 0:02:46]} 10. h4 {[%clk 0:02:54]}  h5 {[%clk 0:02:45]} 11. g4 {[%clk 0:02:53]}  hxg4 {[%clk 0:02:45]} 12. Bxg4 {[%clk 0:02:41]}  Nxg4 {[%clk 0:02:35]} 13. Qxg4 {[%clk 0:02:42]}  Qc8 {[%clk 0:02:35]} 14. Qg3 {[%clk 0:02:39]}  Qf5 {[%clk 0:02:34]} 15. h5 {[%clk 0:02:13]}  g5 {[%clk 0:02:08]} 16. Bxg5 {[%clk 0:01:52]}  f6 {[%clk 0:02:04]} 17. Bh6 {[%clk 0:01:40]}  Qh7 {[%clk 0:01:49]} 18. Bxg7 {[%clk 0:01:39]}  Qxg7 {[%clk 0:01:50]} 19. Ng6 {[%clk 0:01:40]}  Rfe8 {[%clk 0:01:27]} 20. h6 {[%clk 0:01:37]}  Qh7 {[%clk 0:01:27]} 21. O-O-O {[%clk 0:00:46]}  Kf7 {[%clk 0:01:25]} 22. Nf4 {[%clk 0:00:46]}  Rg8 {[%clk 0:01:21]} 23. Qh3 {[%clk 0:00:46]}  Bc8 {[%clk 0:01:21]} 24. Qh5+ {[%clk 0:00:46]}  Kf8 {[%clk 0:01:22]} 25. Rdg1 {[%clk 0:00:46]}  Bf5 {[%clk 0:01:09]} 26. Rxg8+ {[%clk 0:00:44]}  Kxg8 {[%clk 0:01:07]} 27. Rg1+ {[%clk 0:00:44]}  Kf8 {[%clk 0:01:05]} 28. Rg7 {[%clk 0:00:43]}  Bd3 {[%clk 0:01:03]} 1-0

[Event "November 21 Early 2023"]
[Site "https://www.chess.com"]
[Date "2023.11.21"]
[Round "5"]
[White "Aradhya, Garg"]
[Black "Ferreira, Vitor Hugo Vieira"]
[Result "1-0"]
[Board "71"]
[TimeControl "180+1"]
[WhiteFideId "25006746"]
[BlackFideId "2119765"]
[WhiteElo "2323"]
[BlackElo "2123"]
[WhiteTeam "IND"]
[BlackTeam "BRA"]
[WhiteClock "0:00:26"]
[BlackClock "0:00:00"]

1. d4 {[%clk 0:03:00]}  d5 {[%clk 0:02:59]} 2. c4 {[%clk 0:03:01]}  c6 {[%clk 0:03:00]} 3. Nf3 {[%clk 0:03:01]}  Nf6 {[%clk 0:02:59]} 4. e3 {[%clk 0:03:01]}  e6 {[%clk 0:02:59]} 5. Bd3 {[%clk 0:03:00]}  Nbd7 {[%clk 0:02:59]} 6. O-O {[%clk 0:03:00]}  Bd6 {[%clk 0:02:57]} 7. Nc3 {[%clk 0:03:00]}  dxc4 {[%clk 0:02:56]} 8. Bxc4 {[%clk 0:03:00]}  b5 {[%clk 0:02:56]} 9. Bb3 {[%clk 0:02:59]}  Bb7 {[%clk 0:02:55]} 10. e4 {[%clk 0:02:58]}  e5 {[%clk 0:02:55]} 11. Bg5 {[%clk 0:02:57]}  Qc7 {[%clk 0:02:53]} 12. Rc1 {[%clk 0:02:55]}  a6 {[%clk 0:02:50]} 13. Nd5 {[%clk 0:02:31]}  Nxd5 {[%clk 0:02:49]} 14. exd5 {[%clk 0:02:31]}  c5 {[%clk 0:02:35]} 15. dxe5 {[%clk 0:02:28]}  Nxe5 {[%clk 0:02:34]} 16. Nxe5 {[%clk 0:01:58]}  Bxe5 {[%clk 0:02:33]} 17. Re1 {[%clk 0:01:58]}  O-O {[%clk 0:02:24]} 18. Qh5 {[%clk 0:01:54]}  g6 {[%clk 0:02:12]} 19. Qh4 {[%clk 0:01:53]}  c4 {[%clk 0:02:09]} 20. Bc2 {[%clk 0:01:37]}  Bxd5 {[%clk 0:02:05]} 21. Rcd1 {[%clk 0:01:33]}  Bc6 {[%clk 0:01:47]} 22. Bf6 {[%clk 0:01:31]}  Bxf6 {[%clk 0:01:44]} 23. Qxf6 {[%clk 0:01:32]}  Rae8 {[%clk 0:01:40]} 24. h4 {[%clk 0:01:33]}  Rxe1+ {[%clk 0:01:36]} 25. Rxe1 {[%clk 0:01:33]}  Re8 {[%clk 0:01:23]} 26. Rxe8+ {[%clk 0:01:32]}  Bxe8 {[%clk 0:01:24]} 27. Qxa6 {[%clk 0:01:32]}  Qe5 {[%clk 0:01:20]} 28. Qa8 {[%clk 0:01:31]}  Qe1+ {[%clk 0:01:04]} 29. Kh2 {[%clk 0:01:31]}  Kg7 {[%clk 0:01:01]} 30. Qe4 {[%clk 0:01:27]}  Qxe4 {[%clk 0:00:54]} 31. Bxe4 {[%clk 0:01:26]}  Kf6 {[%clk 0:00:55]} 32. f4 {[%clk 0:01:26]}  Ke6 {[%clk 0:00:48]} 33. Kg3 {[%clk 0:01:26]}  Kd6 {[%clk 0:00:43]} 34. Kf2 {[%clk 0:01:25]}  Kc5 {[%clk 0:00:41]} 35. Ke3 {[%clk 0:01:26]}  b4 {[%clk 0:00:38]} 36. h5 {[%clk 0:01:24]}  f5 {[%clk 0:00:36]} 37. hxg6 {[%clk 0:01:23]}  hxg6 {[%clk 0:00:34]} 38. Bf3 {[%clk 0:01:23]}  Bf7 {[%clk 0:00:30]} 39. a3 {[%clk 0:01:15]}  c3 {[%clk 0:00:25]} 40. axb4+ {[%clk 0:01:14]}  Kxb4 {[%clk 0:00:26]} 41. bxc3+ {[%clk 0:01:14]}  Kxc3 {[%clk 0:00:27]} 42. g4 {[%clk 0:01:02]}  Kc4 {[%clk 0:00:19]} 43. g5 {[%clk 0:01:02]}  Bd5 {[%clk 0:00:17]} 44. Be2+ {[%clk 0:01:02]}  Kc5 {[%clk 0:00:17]} 45. Ba6 {[%clk 0:01:02]}  Bc4 {[%clk 0:00:15]} 46. Bc8 {[%clk 0:01:00]}  Kd6 {[%clk 0:00:15]} 47. Kd4 {[%clk 0:00:59]}  Bf7 {[%clk 0:00:15]} 48. Ba6 {[%clk 0:00:58]}  Bb3 {[%clk 0:00:15]} 49. Bb5 {[%clk 0:00:57]}  Bf7 {[%clk 0:00:14]} 50. Bd3 {[%clk 0:00:55]}  Bb3 {[%clk 0:00:14]} 51. Be2 {[%clk 0:00:56]}  Bf7 {[%clk 0:00:14]} 52. Bb5 {[%clk 0:00:56]}  Ke7 {[%clk 0:00:08]} 53. Ke5 {[%clk 0:00:56]}  Bb3 {[%clk 0:00:08]} 54. Ba6 {[%clk 0:00:33]}  Be6 {[%clk 0:00:07]} 55. Bb7 {[%clk 0:00:33]}  Bd7 {[%clk 0:00:06]} 56. Bd5 {[%clk 0:00:33]}  Bc8 {[%clk 0:00:06]} 57. Bg8 {[%clk 0:00:32]}  Bd7 {[%clk 0:00:04]} 58. Bc4 {[%clk 0:00:23]}  Be8 {[%clk 0:00:03]} 59. Kd5 {[%clk 0:00:22]}  Bf7+ {[%clk 0:00:03]} 60. Kc5 {[%clk 0:00:21]}  Bxc4 {[%clk 0:00:03]} 61. Kxc4 {[%clk 0:00:22]}  Kd6 {[%clk 0:00:04]} 62. Kd4 {[%clk 0:00:22]}  Kd7 {[%clk 0:00:03]} 63. Kd5 {[%clk 0:00:22]}  Ke7 {[%clk 0:00:04]} 64. Ke5 {[%clk 0:00:22]}  Kf7 {[%clk 0:00:03]} 65. Kd6 {[%clk 0:00:23]}  Kf8 {[%clk 0:00:01]} 66. Ke6 {[%clk 0:00:23]}  Kg7 {[%clk 0:00:02]} 67. Ke7 {[%clk 0:00:24]}  Kg8 {[%clk 0:00:02]} 68. Kf6 {[%clk 0:00:25]}  Kh7 {[%clk 0:00:00]} 69. Kf7 {[%clk 0:00:26]} 1-0